bitfinex/quotes_SOLUSD_20241225
["timestamp","ask_amount","ask_price","bid_price","bid_amount"]
[1735094109583,14.99103669,200.37,200.29,23.776884]
[1735094109802,14.99103669,200.37,200.31,23.776884]
[1735094110287,21.92393669,200.41,200.34,14.99103669]
[1735094110583,6.9329,200.41,200.35,38.76792069]
[1735094110968,6.9329,200.41,200.35,68.76792069]
[1735094112554,14.99103669,200.42,200.35,68.76792069]
[1735094113387,6.9329,200.46,200.4,14.99103669]
[1735094113591,6.9329,200.46,200.39,14.99103669]
[1735094113766,14.99103669,200.47,200.39,38.76792069]
[1735094113962,14.99103669,200.5,200.42,38.76792069]
[1735094114290,18.4098,200.51,200.42,23.776884]
[1735094114291,14.99103669,200.49,200.42,23.776884]
[1735094117190,14.99103669,200.48,200.42,23.776884]
[1735094117669,14.99103669,200.49,200.42,38.76792069]
[1735094118184,14.99103669,200.5,200.42,38.76792069]
[1735094118783,14.99103669,200.54,200.47,23.776884]
[1735094118987,14.99103669,200.54,200.47,38.76792069]
[1735094119189,14.99103669,200.54,200.47,23.776884]
[1735094119691,14.99103669,200.53,200.47,23.776884]
[1735094119871,15.92602967,200.52,200.44,14.99103669]
[1735094120079,14.99103669,200.5,200.44,23.776884]
[1735094120995,14.99103669,200.51,200.44,38.76792069]
[1735094121291,14.99103669,200.52,200.45,14.99103669]
[1735094121591,14.99103669,200.52,200.44,38.76792069]
[1735094122190,14.99103669,200.52,200.45,14.99103669]
[1735094122392,14.99103669,200.53,200.45,14.99103669]
[1735094122691,14.99103669,200.55,200.48,38.76792069]
[1735094122996,21.96093669,200.56,200.48,38.76792069]
[1735094123587,21.96093669,200.56,200.49,14.99103669]
[1735094125298,14.99103669,200.6,200.55,14.99103669]
[1735094125486,22.31073669,200.63,200.56,14.99103669]
[1735094127200,22.31073669,200.63,200.55,14.99103669]
[1735094127401,14.99103669,200.62,200.54,14.99103669]
[1735094127567,14.99103669,200.61,200.54,38.76792069]
[1735094127771,14.99103669,200.62,200.54,38.76792069]
[1735094128172,14.99103669,200.64,200.57,14.99103669]
[1735094128395,14.99103669,200.66,200.58,38.76792069]
[1735094128672,14.99103669,200.66,200.58,14.99103669]
[1735094128984,14.99103669,200.66,200.59,23.776884]
[1735094129690,14.99103669,200.68,200.6,14.99103669]
[1735094129898,15.92551841,200.71,200.63,14.99103669]
[1735094130102,14.99103669,200.71,200.63,14.99103669]
[1735094130306,14.99103669,200.7,200.64,23.776884]
[1735094130604,14.99103669,200.7,200.63,23.776884]
[1735094133615,0.6472515,200.72,200.59,14.99103669]
[1735094133616,14.99103669,200.66,200.59,14.99103669]
[1735094134220,14.99103669,200.67,200.59,14.99103669]
[1735094134594,15.136794,200.67,200.59,14.99103669]
[1735094135116,15.136794,200.67,200.6,23.776884]
[1735094135288,15.136794,200.67,200.6,38.76792069]
[1735094135496,15.136794,200.67,200.6,14.99103669]
[1735094137514,0.14575731,200.67,200.6,14.99103669]
[1735094137719,1.08022653,200.67,200.6,14.99103669]
[1735094137919,14.99103669,200.66,200.59,14.99103669]
[1735094138129,15.92565336,200.65,200.58,23.776884]
[1735094139722,14.99103669,200.63,200.56,12.0615]
[1735094140023,14.99103669,200.61,200.53,14.99103669]
[1735094140200,15.92587977,200.6,200.53,14.99103669]
[1735094140916,0.93484308,200.6,200.52,21.98973669]
[1735094141213,3.738,200.64,200.51,14.99103669]
[1735094141214,14.99103669,200.58,200.51,14.99103669]
[1735094141404,0.93493669,200.57,200.51,14.99103669]
[1735094141919,14.99103669,200.58,200.51,14.99103669]
[1735094142219,0.93492707,200.57,200.51,14.99103669]
[1735094142894,14.99103669,200.59,200.52,14.99103669]
[1735094143218,0.93491675,200.58,200.52,14.99103669]
[1735094143728,14.99103669,200.61,200.54,14.99103669]
[1735094143900,14.99103669,200.59,200.5,14.99103669]
[1735094144215,14.99103669,200.64,200.48,38.76792069]
[1735094144216,14.99103669,200.56,200.48,38.76792069]
[1735094144423,14.99103669,200.57,200.49,14.99103669]
[1735094144995,0.93496929,200.6,200.49,14.99103669]
[1735094145198,14.99103669,200.57,200.49,14.99103669]
[1735094145821,0.93496941,200.56,200.49,14.99103669]
[1735094149011,14.99103669,200.55,200.47,33.16533669]
[1735094149207,0.93511086,200.54,200.47,33.16533669]
[1735094150013,0.93511086,200.54,200.47,14.99103669]
[1735094150214,14.99103669,200.55,200.47,14.99103669]
[1735094150408,14.99103669,200.57,200.49,14.99103669]
[1735094150610,14.99103669,200.61,200.53,14.99103669]
[1735094150828,15.9260532,200.63,200.55,14.99103669]
[1735094150829,30.91708989,200.63,200.55,14.99103669]
[1735094151027,15.92605389,200.63,200.55,14.99103669]
[1735094151210,14.99103669,200.61,200.53,14.99103669]
[1735094151403,0.93479968,200.6,200.54,23.776884]
[1735094151619,0.93478869,200.6,200.54,23.776884]
[1735094152103,0.93478869,200.6,200.52,14.99103669]
[1735094152303,14.99103669,200.59,200.52,14.99103669]
[1735094153141,0.93485,200.58,200.52,14.99103669]
[1735094153428,14.99103669,200.57,200.48,14.99103669]
[1735094153626,0.93504114,200.56,200.49,23.776884]
[1735094153814,14.99103669,200.57,200.48,14.99103669]
[1735094154018,14.99103669,200.57,200.5,14.99103669]
[1735094155218,14.99103669,200.57,200.51,23.776884]
[1735094156509,0.93492877,200.56,200.5,14.99103669]
[1735094156709,14.99103669,200.57,200.48,14.99103669]
[1735094156937,14.99103669,200.57,200.49,23.776884]
[1735094157324,14.99103669,200.57,200.5,14.99103669]
[1735094157940,0.93495481,200.56,200.47,23.776884]
[1735094158236,0.93495481,200.56,200.49,23.776884]
[1735094158711,14.99103669,200.57,200.49,23.776884]
[1735094159137,14.99103669,200.57,200.5,14.99103669]
[1735094159436,14.99103669,200.61,200.54,14.99103669]
[1735094160838,0.93488504,200.62,200.54,14.99103669]
[1735094161047,14.99103669,200.66,200.56,14.99103669]
[1735094161345,14.99103669,200.66,200.57,23.776884]
[1735094162840,14.99103669,200.66,200.58,14.99103669]
[1735094164244,14.99103669,200.68,200.6,14.99103669]
[1735094164539,23.25016747,200.7,200.62,14.99103669]
[1735094164739,22.31573669,200.7,200.62,14.99103669]
[1735094165641,0.93435947,200.69,200.62,14.99103669]
[1735094165937,22.31573669,200.7,200.62,14.99103669]
[1735094166945,0.93435725,200.69,200.62,14.99103669]
[1735094167444,14.99103669,200.66,200.58,14.99103669]
[1735094167653,0.93456291,200.65,200.58,14.99103669]
[1735094169430,7.3247,200.7,200.63,14.99103669]
[1735094169761,7.3247,200.7,200.62,30.0]
[1735094169762,7.3247,200.7,200.65,14.99103669]
[1735094169937,7.3247,200.7,200.64,23.776884]
[1735094170121,8.25903495,200.7,200.64,23.776884]
[1735094170321,0.6472515,200.72,200.65,14.99103669]
[1735094170538,1.58142474,200.72,200.65,14.99103669]
[1735094170734,14.99103669,200.71,200.63,14.99103669]
[1735094170948,0.93438394,200.7,200.64,23.776884]
[1735094171124,0.6472515,200.72,200.64,23.776884]
[1735094171965,0.93427363,200.71,200.64,23.776884]
[1735094172252,1.58153288,200.72,200.64,23.776884]
[1735094172542,0.6472515,200.72,200.66,23.776884]
[1735094172843,0.6472515,200.72,200.67,14.99103669]
[1735094174158,0.6472515,200.72,200.69,14.99103669]
[1735094174343,0.6472515,200.72,200.71,14.99103669]
[1735094174531,0.6472515,200.72,200.71,38.76792069]
[1735094175355,0.6472515,200.72,200.71,14.99103669]
[1735094176759,0.6472515,200.72,200.71,68.76792069]
[1735094177657,0.6472515,200.72,200.71,76.00591069]
[1735094178350,11.7503,200.87,200.79,30.0]
[1735094178526,14.99103669,200.89,200.81,14.99103669]
[1735094178722,1.58083863,200.92,200.8,23.776884]
[1735094178921,16.57187532,200.92,200.84,14.99103669]
[1735094179425,14.99103669,200.9,200.82,14.99103669]
[1735094179626,14.99103669,200.9,200.8,23.776884]
[1735094179627,14.99103669,200.88,200.8,38.76792069]
[1735094180043,14.99103669,200.9,200.83,23.776884]
[1735094180670,15.63828819,200.92,200.85,23.776884]
[1735094180831,16.57156443,200.92,200.84,14.99103669]
[1735094181032,0.6472515,200.92,200.91,23.776884]
[1735094181273,0.6472515,200.92,200.91,35.150674]
[1735094181941,79.79534831,201.12,201.0,14.99103669]
[1735094181942,7.2018,201.1,201.0,14.99103669]
[1735094182132,14.99103669,201.09,201.01,23.776884]
[1735094182628,15.92353784,201.09,201.01,23.776884]
[1735094182832,15.92353784,201.09,201.0,14.99103669]
[1735094183032,14.99103669,201.07,201.0,14.99103669]
[1735094184060,14.99103669,201.07,201.01,23.776884]
[1735094184267,23.77817226,201.1,201.01,47.55505626]
[1735094184429,24.42542376,201.12,201.04,23.776884]
[1735094184744,0.93237871,201.11,201.03,23.77817226]
[1735094184934,0.93237871,201.11,201.04,23.776884]
[1735094184935,23.77817226,201.1,201.04,23.776884]
[1735094185136,23.77817226,201.1,201.03,23.77817226]
[1735094185535,23.77817226,201.1,201.01,23.77817226]
[1735094185863,0.932487,201.09,201.04,20.0]
[1735094186231,0.6472515,201.12,201.04,20.0]
[1735094186232,23.77817226,201.1,201.04,20.0]
[1735094186432,0.93257996,201.09,201.04,20.0]
[1735094186868,23.77817226,201.09,201.01,23.77817226]
[1735094187165,0.93261457,201.08,201.01,23.77817226]
[1735094187542,23.77817226,201.07,200.99,47.55505626]
[1735094187751,23.77817226,201.05,200.98,23.776884]
[1735094187959,0.93274408,201.04,200.97,23.77817226]
[1735094188155,23.77817226,201.05,200.97,23.77817226]
[1735094188349,23.77817226,201.07,200.99,23.77817226]
[1735094189953,23.77817226,201.11,201.03,23.77817226]
[1735094190162,0.6472515,201.12,201.05,23.77817226]
[1735094190377,0.6472515,201.12,201.06,23.776884]
[1735094190572,1.57957061,201.12,201.05,23.77817226]
[1735094190748,1.57957061,201.12,201.02,30.0]
[1735094190749,23.77817226,201.11,201.03,23.77817226]
[1735094190958,23.77817226,201.09,201.01,23.77817226]
[1735094191183,0.93254484,201.08,201.01,23.77817226]
[1735094191349,23.77817226,201.09,201.01,23.77817226]
[1735094191981,23.77817226,201.11,201.03,23.77817226]
[1735094192284,0.93242266,201.1,201.03,23.77817226]
[1735094193587,23.77817226,201.11,201.03,23.77817226]
[1735094193757,23.77817226,201.11,201.0,0.12549]
[1735094193758,0.6472515,201.12,201.05,47.55505626]
[1735094195652,0.6472515,201.12,201.09,23.77817226]
[1735094195884,0.6472515,201.12,201.1,23.776884]
[1735094196384,0.6472515,201.12,201.07,23.77817226]
[1735094196552,0.6472515,201.12,201.08,23.776884]
[1735094198080,0.6472515,201.12,201.11,97.68054626]
[1735094198249,0.6472515,201.12,201.11,97.55505626]
[1735094198579,0.6472515,201.12,201.11,67.55505626]
[1735094199279,0.6472515,201.12,201.11,97.68054626]
[1735094202079,0.6472515,201.12,201.03,48.8223]
[1735094202080,24.42542376,201.12,201.03,48.8223]
[1735094202385,23.77817226,201.1,201.03,72.60047226]
[1735094202580,24.42542376,201.12,201.04,0.12549]
[1735094203065,24.42542376,201.12,201.03,72.60047226]
[1735094203267,24.42542376,201.12,201.03,65.26607226]
[1735094203482,24.42542376,201.12,201.04,0.12549]
[1735094204083,24.42542376,201.12,201.05,23.77817226]
[1735094204556,24.42542376,201.12,201.06,23.776884]
[1735094205068,0.6472515,201.12,201.08,23.776884]
[1735094207077,0.6472515,201.12,201.06,23.776884]
[1735094210379,0.6472515,201.12,201.08,14.85581612]
[1735094210584,0.6472515,201.12,201.1,14.85581612]
[1735094211694,0.6472515,201.12,201.07,38.63270012]
[1735094211899,0.6472515,201.12,201.07,14.85581612]
[1735094215693,0.6472515,201.12,201.05,14.85581612]
[1735094215892,0.93246934,201.11,201.05,14.85581612]
[1735094216077,14.85581612,201.1,201.03,14.85581612]
[1735094216422,1.57984696,201.12,201.05,14.85581612]
[1735094218495,16.43566308,201.12,201.03,14.85581612]
[1735094218690,3.7293,201.11,201.03,14.85581612]
[1735094218888,0.93257957,201.1,201.03,14.85581612]
[1735094220797,16.43561883,201.12,201.05,14.85581612]
[1735094220981,0.6472515,201.12,201.07,14.85581612]
[1735094221305,1.57950737,201.12,201.06,20.0]
[1735094221596,1.57950737,201.12,201.05,14.85581612]
[1735094224896,0.6472515,201.12,201.05,14.85581612]
[1735094227807,15.50306762,201.12,201.05,14.85581612]
[1735094228004,0.93251258,201.11,201.05,14.85581612]
[1735094230500,0.6472515,201.12,201.07,14.85581612]
[1735094230696,0.6472515,201.12,201.03,30.0]
[1735094230697,0.6472515,201.12,201.09,14.85581612]
[1735094231000,0.6472515,201.12,201.11,38.63270012]
[1735094231205,0.6472515,201.12,201.11,38.75819012]
[1735094240110,0.93192369,201.26,201.2,20.0]
[1735094240314,7.03678041,201.27,201.23,14.85581612]
[1735094241105,7.03678041,201.27,201.24,14.85581612]
[1735094241299,8.041e-05,201.27,201.25,14.85581612]
[1735094242512,8.041e-05,201.27,201.26,14.85581612]
[1735094243594,8.041e-05,201.27,201.26,38.63270012]
[1735094244318,8.041e-05,201.27,201.26,14.85581612]
[1735094244696,8.041e-05,201.27,201.25,14.85581612]
[1735094244900,8.041e-05,201.27,201.25,20.0]
[1735094245097,8.041e-05,201.27,201.25,34.85581612]
[1735094245297,8.041e-05,201.27,201.26,14.85581612]
[1735094246208,8.041e-05,201.27,201.26,38.63270012]
[1735094246821,8.041e-05,201.27,201.26,38.75819012]
[1735094247023,8.041e-05,201.27,201.24,20.0]
[1735094247203,8.041e-05,201.27,201.25,20.0]
[1735094250594,8.041e-05,201.27,201.26,23.776884]
[1735094250801,8.041e-05,201.27,201.26,68.75819012]
[1735094251197,0.18190104,201.31,201.26,81.17989012]
[1735094251401,0.18190104,201.31,201.3,68.63270012]
[1735094253502,0.18190104,201.31,201.3,68.75819012]
[1735094256130,5.15e-05,201.32,201.31,0.12549]
[1735094256330,11.21011347,201.47,201.45,30.12549]
[1735094256509,11.21011347,201.47,201.45,44.98130612]
[1735094257734,11.21011347,201.47,201.45,20.0]
[1735094258304,11.21011347,201.47,201.45,43.776884]
[1735094259330,11.21011347,201.47,201.42,20.0]
[1735094259623,11.21011347,201.47,201.41,14.85581612]
[1735094264435,18.57601347,201.47,201.41,14.85581612]
[1735094265838,0.93076016,201.45,201.39,14.85581612]
[1735094266336,0.93076016,201.45,201.37,14.85581612]
[1735094266510,14.85581612,201.44,201.35,14.85581612]
[1735094266710,0.93095763,201.43,201.37,14.85581612]
[1735094268319,0.93094783,201.44,201.37,14.85581612]
[1735094270736,14.85581612,201.43,201.35,14.85581612]
[1735094270922,0.93102567,201.42,201.35,14.85581612]
[1735094271535,0.93102567,201.42,201.37,14.85581612]
[1735094271832,14.85581612,201.41,201.33,30.0]
[1735094272015,15.78684022,201.4,201.33,14.85581612]
[1735094272215,14.85581612,201.4,201.33,14.85581612]
[1735094272434,14.85581612,201.38,201.31,14.85581612]
[1735094272735,14.85581612,201.37,201.3,30.0]
[1735094272935,22.11191612,201.38,201.31,14.85581612]
[1735094274422,7.2561,201.38,201.33,44.85581612]
[1735094274620,7.2561,201.38,201.33,14.85581612]
[1735094274918,7.2561,201.38,201.31,14.85581612]
[1735094275830,0.93117432,201.37,201.3,14.85581612]
[1735094276034,14.85581612,201.36,201.28,14.85581612]
[1735094276216,7.2561,201.38,201.31,14.85581612]
[1735094276420,7.2561,201.38,201.32,14.85581612]
[1735094277637,7.2561,201.38,201.33,14.85581612]
[1735094277841,14.85581612,201.42,201.34,14.85581612]
[1735094278018,14.85581612,201.42,201.32,23.776884]
[1735094278221,14.85581612,201.41,201.34,23.776884]
[1735094280046,7.2561,201.43,201.35,14.85581612]
[1735094280333,22.11191612,201.43,201.36,14.85581612]
[1735094280544,12.0535,201.45,201.4,14.85581612]
[1735094281117,550.00372,201.46,201.43,14.85581612]
[1735094281725,550.00372,201.46,201.41,14.85581612]
[1735094282519,550.00372,201.46,201.39,14.85581612]
[1735094282846,0.93084242,201.45,201.39,14.85581612]
[1735094283047,0.93084242,201.45,201.37,14.85581612]
[1735094283550,564.85953612,201.46,201.39,14.85581612]
[1735094283730,550.00372,201.46,201.39,14.85581612]
[1735094284133,550.00372,201.46,201.41,14.85581612]
[1735094284954,550.00372,201.46,201.39,14.85581612]
[1735094285260,15.78657891,201.45,201.37,14.85581612]
[1735094285752,14.85581612,201.43,201.33,14.85581612]
[1735094286047,14.85581612,201.39,201.31,14.85581612]
[1735094287619,14.85581612,201.39,201.29,30.0]
[1735094287821,14.85581612,201.41,201.33,44.85581612]
[1735094288025,14.85581612,201.43,201.36,30.0]
[1735094288227,14.85581612,201.45,201.37,14.85581612]
[1735094288442,15.7866413,201.45,201.37,14.85581612]
[1735094288644,14.85581612,201.43,201.35,14.85581612]
[1735094289159,14.85581612,201.45,201.37,14.85581612]
[1735094289450,550.00372,201.46,201.39,14.85581612]
[1735094290152,15.78659348,201.45,201.39,20.0]
[1735094290445,0.93077736,201.45,201.37,14.85581612]
[1735094290650,15.78659348,201.45,201.37,14.85581612]
[1735094290845,14.85581612,201.43,201.35,14.85581612]
[1735094291048,14.85581612,201.41,201.33,14.85581612]
[1735094291238,14.85581612,201.39,201.31,14.85581612]
[1735094293846,14.85581612,201.41,201.31,14.85581612]
[1735094294156,15.78695193,201.45,201.37,14.85581612]
[1735094296159,550.00372,201.46,201.37,44.85581612]
[1735094296347,550.00372,201.46,201.41,14.85581612]
[1735094298258,550.00372,201.46,201.39,14.85581612]
[1735094299054,550.00372,201.46,201.41,14.85581612]
[1735094299671,550.00372,201.46,201.39,14.85581612]
[1735094299974,550.00372,201.46,201.39,44.85581612]
[1735094300959,550.00372,201.46,201.43,14.85581612]
[1735094301133,550.00372,201.46,201.42,20.0]
[1735094301336,550.00372,201.46,201.41,14.85581612]
[1735094301656,550.00372,201.46,201.42,23.776884]
[1735094301869,550.00372,201.46,201.42,53.776884]
[1735094302344,550.00372,201.46,201.41,14.85581612]
[1735094304160,550.00372,201.46,201.43,14.85581612]
[1735094308562,550.00372,201.46,201.45,14.85581612]
[1735094310067,550.00372,201.46,201.43,38.63270012]
[1735094312964,550.00372,201.46,201.45,14.85581612]
[1735094314048,550.00372,201.46,201.41,14.85581612]
[1735094314240,8.02402795,201.45,201.38,14.85581612]
[1735094314442,14.85581612,201.44,201.36,14.85581612]
[1735094314735,0.12549,201.41,201.3,19.63374991]
[1735094314941,0.12549,201.41,201.3,7.77884991]
[1735094314942,14.85581612,201.35,201.3,7.77884991]
[1735094315274,14.85581612,201.32,201.3,7.77884991]
[1735094315566,11.1364,201.37,201.24,7.77884991]
[1735094315567,15.78729571,201.31,201.24,7.77884991]
[1735094315868,14.85581612,201.25,201.24,7.77884991]
[1735094316361,0.93147959,201.31,201.24,7.77884991]
[1735094316567,14.85581612,201.25,201.2,30.0]
[1735094316773,14.85581612,201.23,201.2,30.0]
[1735094317140,14.85581612,201.23,201.21,23.776884]
[1735094317362,22.63466603,201.28,201.21,23.776884]
[1735094317542,14.85581612,201.26,201.2,30.0]
[1735094317742,14.85581612,201.24,201.16,44.85581612]
[1735094317940,14.85581612,201.22,201.16,30.0]
[1735094318155,14.85581612,201.2,201.16,30.0]
[1735094320374,14.85581612,201.17,201.12,30.0]
[1735094320548,14.85581612,201.15,201.12,30.0]
[1735094320748,14.85581612,201.17,201.12,30.0]
[1735094321165,14.85581612,201.19,201.12,30.0]
[1735094322074,14.85581612,201.19,201.13,23.776884]
[1735094322279,14.85581612,201.17,201.13,23.776884]
[1735094322458,14.85581612,201.17,201.12,20.0]
[1735094323581,14.85581612,201.17,201.12,2.71643487]
[1735094323776,14.85581612,201.15,201.09,30.0]
[1735094324165,14.85581612,201.17,201.09,44.85581612]
[1735094324668,0.93186506,201.24,201.1,0.12549]
[1735094324975,14.85581612,201.18,201.1,23.776884]
[1735094325278,14.85581612,201.16,201.09,30.0]
[1735094325464,14.85581612,201.16,201.09,53.776884]
[1735094325853,14.85581612,201.16,201.09,30.0]
[1735094326264,0.7448186,201.23,201.13,14.85581612]
[1735094326460,14.85581612,201.21,201.12,30.0]
[1735094326765,12.73672244,201.25,201.12,30.0]
[1735094326766,14.85581612,201.19,201.12,30.0]
[1735094326972,14.85581612,201.17,201.09,44.85581612]
[1735094327284,14.85581612,201.17,201.1,23.776884]
[1735094327888,14.85581612,201.15,201.09,30.0]
[1735094328876,14.85581612,201.15,201.1,20.0]
[1735094329050,14.85581612,201.15,201.09,20.0]
[1735094329255,14.85581612,201.15,201.06,37.2349]
[1735094329886,14.85581612,201.15,201.07,14.85581612]
[1735094330177,0.93206867,201.21,201.1,20.0]
[1735094330383,14.85581612,201.15,201.1,20.0]
[1735094330673,14.85581612,201.17,201.1,20.0]
[1735094330861,14.85581612,201.17,201.09,34.85581612]
[1735094332167,0.93211422,201.16,201.1,23.776884]
[1735094332481,14.85581612,201.17,201.1,23.776884]
[1735094332781,14.85581612,201.15,201.07,23.776884]
[1735094333169,0.93227635,201.14,201.07,23.776884]
[1735094333368,14.85581612,201.13,201.07,23.776884]
[1735094334785,14.85581612,201.13,201.05,44.85581612]
[1735094335582,14.85581612,201.13,201.05,14.85581612]
[1735094336079,23.776884,201.18,201.07,14.85581612]
[1735094336287,14.85581612,201.16,201.07,14.85581612]
[1735094336887,14.85581612,201.16,201.09,14.85581612]
[1735094337994,14.85581612,201.16,201.07,14.98130612]
[1735094338286,14.85581612,201.14,201.07,14.85581612]
[1735094339379,0.93222776,201.13,201.05,14.85581612]
[1735094339985,14.85581612,201.12,201.03,44.85581612]
[1735094340186,0.93241031,201.11,201.03,44.85581612]
[1735094340469,14.85581612,201.12,201.03,44.85581612]
[1735094341287,14.85581612,201.12,201.04,0.12549]
[1735094341477,14.85581612,201.12,201.05,14.85581612]
[1735094342596,14.85581612,201.1,201.03,14.85581612]
[1735094342790,14.85581612,201.1,201.0,30.0]
[1735094342791,14.85581612,201.1,201.01,14.85581612]
[1735094342971,0.93250816,201.09,201.01,14.85581612]
[1735094343167,14.85581612,201.1,201.01,14.85581612]
[1735094343680,0.93247596,201.09,201.01,14.85581612]
[1735094344017,14.85581612,201.08,200.99,14.85581612]
[1735094344167,0.93262269,201.07,200.99,14.85581612]
[1735094344374,14.85581612,201.06,200.97,44.85581612]
[1735094344584,0.93268019,201.05,200.97,44.85581612]
[1735094344996,14.85581612,201.04,200.97,30.0]
[1735094345367,14.85581612,201.04,200.95,14.85581612]
[1735094345982,14.85581612,201.02,200.95,14.85581612]
[1735094346567,14.85581612,201.02,200.94,30.0]
[1735094346974,14.85581612,201.0,200.94,30.0]
[1735094347380,14.85581612,201.0,200.93,14.85581612]
[1735094347576,14.85581612,200.98,200.91,44.85581612]
[1735094347776,14.85581612,201.0,200.91,14.85581612]
[1735094347975,3.9369,201.01,200.93,14.85581612]
[1735094354400,14.85581612,201.0,200.93,14.85581612]
[1735094354598,14.85581612,200.98,200.94,20.0]
[1735094355272,14.85581612,201.0,200.94,20.0]
[1735094355473,14.85581612,201.0,200.92,30.0]
[1735094359401,14.85581612,201.0,200.91,14.85581612]
[1735094359579,14.85581612,200.98,200.91,14.85581612]
[1735094359778,14.85581612,200.98,200.89,44.85581612]
[1735094359978,0.93304657,200.97,200.89,14.85581612]
[1735094360197,14.85581612,200.96,200.89,14.85581612]
[1735094360379,14.85581612,200.96,200.87,14.98130612]
[1735094360580,14.85581612,200.94,200.86,30.0]
[1735094361183,14.85581612,200.94,200.87,14.85581612]
[1735094361390,14.85581612,200.96,200.87,14.85581612]
[1735094361896,0.93314598,200.95,200.87,14.85581612]
[1735094362380,14.85581612,200.94,200.85,14.85581612]
[1735094362575,14.85581612,200.9,200.83,14.85581612]
[1735094362876,4.1959,200.92,200.82,0.6472515]
[1735094362877,14.85581612,200.88,200.82,0.6472515]
[1735094363080,0.93354897,200.87,200.82,0.6472515]
[1735094363383,14.85581612,200.88,200.82,0.6472515]
[1735094363587,0.93356793,200.87,200.82,0.6472515]
[1735094364095,14.85581612,200.88,200.82,0.6472515]
[1735094364301,14.85581612,200.9,200.82,0.6472515]
[1735094364489,0.93343225,200.89,200.82,0.6472515]
[1735094364801,15.78926305,200.9,200.82,0.6472515]
[1735094365593,14.85581612,200.9,200.82,0.6472515]
[1735094365908,14.85581612,200.9,200.83,44.85581612]
[1735094366210,14.85581612,200.96,200.87,14.85581612]
[1735094366380,15.7889203,200.96,200.87,14.85581612]
[1735094366708,14.85581612,200.94,200.88,20.0]
[1735094366913,0.93329145,200.93,200.88,20.0]
[1735094368503,14.85581612,200.92,200.88,20.0]
[1735094369185,0.93328996,200.91,200.83,44.85581612]
[1735094369386,14.85581612,200.9,200.83,20.0]
[1735094369588,14.85581612,200.88,200.82,0.6472515]
[1735094370011,0.93352747,200.87,200.82,0.6472515]
[1735094372304,14.85581612,200.86,200.82,0.6472515]
[1735094372507,14.85581612,200.84,200.82,0.6472515]
[1735094373194,14.85581612,200.86,200.82,0.6472515]
[1735094374891,14.85581612,200.84,200.82,0.6472515]
[1735094375288,0.93371753,200.83,200.82,0.6472515]
[1735094376093,24.71060153,200.83,200.82,0.6472515]
[1735094376723,24.83609153,200.83,200.82,0.6472515]
[1735094377911,24.83609153,200.83,200.68,36.3761]
[1735094377912,0.12549,200.79,200.68,21.23191612]
[1735094378115,14.85581612,200.74,200.66,14.85581612]
[1735094378297,14.85581612,200.72,200.65,30.0]
[1735094379118,14.85581612,200.7,200.63,14.85581612]
[1735094380019,14.85581612,200.72,200.64,14.85581612]
[1735094381220,14.85581612,200.72,200.62,30.6472515]
[1735094381221,14.85581612,200.74,200.67,14.85581612]
[1735094381634,14.85581612,200.76,200.68,34.85581612]
[1735094381802,14.85581612,200.76,200.69,14.85581612]
[1735094382004,0.9340415,200.8,200.73,14.85581612]
[1735094382005,15.78985762,200.8,200.73,14.85581612]
[1735094382206,14.85581612,200.81,200.74,14.85581612]
[1735094384042,15.78964148,200.8,200.74,20.0]
[1735094384200,14.85581612,200.8,200.75,20.0]
[1735094384932,0.93378074,200.79,200.72,14.85581612]
[1735094386703,14.85581612,200.8,200.72,14.85581612]
[1735094386921,17.20351612,200.82,200.74,14.85581612]
[1735094387738,14.85581612,200.84,200.76,14.85581612]
[1735094387935,14.85581612,200.86,200.78,14.85581612]
[1735094389236,14.85581612,200.86,200.79,30.0]
[1735094389527,2.422,200.87,200.8,14.85581612]
[1735094391930,14.85581612,200.86,200.78,14.85581612]
[1735094392230,14.85581612,200.86,200.72,44.85581612]
[1735094392231,14.85581612,200.81,200.72,44.85581612]
[1735094392433,14.85581612,200.79,200.72,14.85581612]
[1735094392634,0.93397728,200.78,200.7,14.85581612]
[1735094394627,15.7897934,200.78,200.7,14.85581612]
[1735094395237,14.85581612,200.77,200.7,14.85581612]
[1735094395435,15.7899528,200.76,200.68,14.85581612]
[1735094395648,0.93413668,200.76,200.71,14.85581612]
[1735094395843,3.38890274,200.77,200.71,14.85581612]
[1735094396028,0.93400099,200.78,200.71,14.85581612]
[1735094396445,0.9339891,200.81,200.72,14.85581612]
[1735094396623,14.85581612,200.8,200.73,14.85581612]
[1735094396824,0.93393056,200.79,200.73,14.85581612]
[1735094397629,0.93393056,200.79,200.72,14.85581612]
[1735094397830,15.78974668,200.79,200.71,34.85581612]
[1735094398753,15.78974668,200.79,200.72,14.85581612]
[1735094400153,0.93393056,200.79,200.72,14.85581612]
[1735094401159,14.85581612,200.8,200.72,14.85581612]
[1735094402255,14.85581612,200.8,200.75,20.0]
[1735094402461,2.4549,200.82,200.76,14.85581612]